bitfinex/quotes_SOLUSD_20251208
["timestamp","ask_amount","ask_price","bid_price","bid_amount"]
[1765166570274,7.53162901,134.56,134.55,2.16072354]
[1765166570459,26.80070154,134.56,134.53,2.16072354]
[1765166570783,26.11070154,134.56,134.53,2.84072354]
[1765166572076,26.11070154,134.56,134.52,2.84072354]
[1765166572260,0.71,134.55,134.52,2.16072354]
[1765166572580,0.71,134.55,134.51,18.46958754]
[1765166572758,0.71,134.55,134.5,2.16072354]
[1765166572960,2.87072354,134.55,134.49,11.02072354]
[1765166573170,8.18,134.54,134.49,11.02072354]
[1765166573373,8.89,134.54,134.49,11.02072354]
[1765166573572,0.71,134.53,134.49,11.02072354]
[1765166573977,7.43383883,134.52,134.5,0.68]
[1765166575083,7.43383883,134.52,134.49,11.02072354]
[1765166575584,0.71,134.52,134.49,11.02072354]
[1765166575780,0.71,134.52,134.48,2.16072354]
[1765166575961,0.71,134.52,134.48,2.84072354]
[1765166576162,0.71,134.52,134.48,0.68]
[1765166576364,2.87072354,134.52,134.47,18.46958754]
[1765166576663,2.87072354,134.52,134.47,19.14958754]
[1765166576864,0.71,134.51,134.47,19.14958754]
[1765166577174,0.71,134.51,134.48,0.68]
[1765166577975,7.43494423,134.5,134.49,16.308864]
[1765166579183,7.43494423,134.5,134.38,0.99999999]
[1765166579184,26.02230482,134.5,134.38,0.99999999]
[1765166579389,7.43494423,134.5,134.46,2.84072354]
[1765166579683,7.43494423,134.5,134.47,2.16072354]
[1765166579884,7.43494423,134.5,134.47,2.84072354]
[1765166580081,0.71,134.54,134.49,2.16072354]
[1765166580281,0.71,134.54,134.48,0.68]
[1765166580282,26.01508617,134.54,134.5,2.16072354]
[1765166580673,26.01508617,134.54,134.5,4.05732815]
[1765166580674,26.72508617,134.54,134.5,4.05732815]
[1765166580859,26.72508617,134.54,134.5,19.68619215]
[1765166581060,26.72508617,134.54,134.51,0.68]
[1765166583593,26.72508617,134.54,134.5,20.36619215]
[1765166584388,26.72508617,134.54,134.5,16.988864]
[1765166586873,26.72508617,134.54,134.51,0.66]
[1765166588297,26.01508617,134.54,134.51,4.03732815]
[1765166588896,26.01508617,134.54,134.52,0.66]
[1765166589397,7.43273375,134.54,134.52,16.968864]
[1765166589616,7.43229874,134.55,134.52,28.52619215]
[1765166589806,7.43229874,134.55,134.53,0.66]
[1765166590101,7.43229874,134.55,134.53,4.03732815]
[1765166590589,18.67970215,134.56,134.54,0.66]
[1765166595215,0.7,134.55,134.51,20.34619215]
[1765166595406,0.7,134.55,134.51,16.968864]
[1765166595613,108.87732815,134.55,134.51,16.308864]
[1765166595814,0.7,134.54,134.5,8.84]
[1765166596308,8.88,134.54,134.5,0.66]
[1765166596492,8.88,134.54,134.5,16.968864]
[1765166596692,26.71650188,134.53,134.5,16.308864]
[1765166596888,11.55732815,134.52,134.47,0.66]
[1765166597082,12.25732815,134.52,134.47,0.66]
[1765166597289,0.7,134.51,134.46,4.03732815]
[1765166598394,0.7,134.51,134.45,8.18]
[1765166598395,3.37732815,134.49,134.44,16.968864]
[1765166598695,11.55732815,134.49,134.45,16.308864]
[1765166598881,0.7,134.48,134.45,16.308864]
[1765166600391,7.43660295,134.47,134.45,16.308864]
[1765166600591,7.43660295,134.47,134.45,16.968864]
[1765166600812,7.43660295,134.47,134.45,16.308864]
[1765166601112,7.43660295,134.47,134.45,16.988864]
[1765166602112,26.02652962,134.48,134.45,16.988864]
[1765166602785,26.74652962,134.48,134.45,16.988864]
[1765166602998,26.74652962,134.48,134.41,0.68]
[1765166602999,3.37732815,134.46,134.41,0.68]
[1765166603290,11.57732815,134.46,134.41,0.68]
[1765166603513,0.72,134.45,134.41,0.68]
[1765166604109,7.43826242,134.44,134.41,0.68]
[1765166604898,7.43826242,134.44,134.41,4.05732815]
[1765166605100,7.43826242,134.44,134.39,27.88619215]
[1765166605299,26.75391847,134.44,134.4,0.68]
[1765166606529,30.13124662,134.44,134.4,0.68]
[1765166607743,26.75391847,134.44,134.4,0.68]
[1765166607919,26.03391847,134.44,134.4,0.68]
[1765166609110,26.75391847,134.44,134.4,0.68]
[1765166610621,131.55391847,134.44,134.4,0.68]
[1765166611025,4.09732815,134.43,134.39,24.508864]
[1765166611197,4.09732815,134.43,134.39,25.188864]
[1765166611398,0.72,134.42,134.39,16.308864]
[1765166611599,12.29732815,134.43,134.39,16.988864]
[1765166611808,8.92,134.43,134.39,16.988864]
[1765166612303,8.92,134.43,134.39,16.308864]
[1765166612506,8.92,134.43,134.4,0.68]
[1765166612910,8.92,134.43,134.36,0.88]
[1765166612911,3.37732815,134.41,134.36,0.88]
[1765166613313,0.72,134.4,134.38,16.308864]
[1765166613831,8.2,134.39,134.36,0.2]
[1765166614324,8.92,134.39,134.36,0.2]
[1765166614904,7.44158356,134.38,134.36,16.508864]
[1765166615703,7.44158356,134.38,134.36,0.2]
[1765166616229,7.44158356,134.38,134.36,16.508864]
[1765166616622,7.44158356,134.38,134.36,17.188864]
[1765166618832,7.44158356,134.38,134.36,0.2]
[1765166620617,7.44158356,134.38,134.36,0.88]
[1765166621620,7.44158356,134.38,134.37,0.68]
[1765166621826,112.24120779,134.39,134.37,0.68]
[1765166624647,112.24120779,134.39,134.36,0.2]
[1765166624829,112.96120779,134.39,134.36,0.2]
[1765166625217,130.84378238,134.39,134.36,0.88]
[1765166626447,131.56378238,134.39,134.36,0.88]
[1765166626951,131.56378238,134.39,134.37,0.68]
[1765166626952,130.84378238,134.39,134.37,0.68]
[1765166631642,139.04378238,134.39,134.36,0.2]
[1765166631945,0.72,134.38,134.36,0.2]
[1765166633149,4.09732815,134.38,134.36,0.2]
[1765166633738,7.44213738,134.37,134.36,0.2]
[1765166633944,7.44213738,134.37,134.36,0.91]
[1765166634268,104.8,134.39,134.36,20.59619215]
[1765166634550,104.8,134.39,134.37,0.71]
[1765166635140,112.96116574,134.39,134.36,16.508864]
[1765166635339,112.24116574,134.39,134.36,17.218864]
[1765166635742,112.24116574,134.39,134.37,0.71]
[1765166638844,112.24116574,134.39,134.36,16.508864]
[1765166638845,112.24116574,134.39,134.36,17.218864]
[1765166639042,112.24116574,134.39,134.37,0.71]
[1765166639863,112.24116574,134.39,134.36,16.508864]
[1765166639864,131.56374033,134.39,134.36,16.508864]
[1765166640548,0.72,134.38,134.36,0.2]
[1765166640866,8.92,134.38,134.36,0.2]
[1765166641371,8.2,134.38,134.36,0.91]
[1765166641665,7.44213738,134.37,134.36,0.2]
[1765166642269,7.44213738,134.37,134.36,0.91]
[1765166646179,7.44213738,134.37,134.36,0.2]
[1765166647251,8.15213738,134.37,134.36,0.2]
[1765166647660,9.51994492,134.36,134.35,1e-08]
[1765166647870,19.88674026,134.36,134.35,1e-08]
[1765166648374,27.32943153,134.36,134.35,1e-08]
[1765166648768,18.51948661,134.36,134.35,1e-08]
[1765166649354,27.32943153,134.36,134.35,1e-08]
[1765166650745,18.51948661,134.36,134.35,1e-08]
[1765166654358,18.51948661,134.36,134.29,2.36679534]
[1765166654359,16.308864,134.32,134.29,0.2]
[1765166654560,16.308864,134.32,134.22,0.2]
[1765166654561,25.11880892,134.29,134.22,0.2]
[1765166654766,2.16679534,134.23,134.22,0.2]
[1765166654963,10.38679534,134.23,134.22,0.2]
[1765166655477,2.16679534,134.23,134.22,0.2]
[1765166655652,8.22,134.23,134.22,0.2]
[1765166656555,15.66989942,134.23,134.22,0.2]
[1765166656777,7.44989942,134.23,134.22,0.92]
[1765166657281,7.44989942,134.23,134.22,0.2]
[1765166658468,9.61669476,134.23,134.22,0.2]
[1765166659470,7.44989942,134.23,134.22,0.2]
[1765166661481,15.66989942,134.23,134.22,0.2]
[1765166663284,7.44989942,134.23,134.22,0.2]
[1765166663886,7.44934445,134.24,134.22,3.01679534]
[1765166664077,7.44934445,134.24,134.22,19.32565934]
[1765166664389,7.44823476,134.26,134.23,2.81679534]
[1765166664986,7.44823476,134.26,134.24,0.65]
[1765166665671,7.44823476,134.26,134.23,2.16679534]
[1765166665989,7.44823476,134.26,134.24,0.65]
[1765166666190,26.06882168,134.26,134.22,19.32565934]
[1765166666386,26.06882168,134.26,134.23,0.65]
[1765166668369,26.06882168,134.26,134.23,2.81679534]
[1765166670166,26.06882168,134.26,134.23,0.65]
[1765166670592,26.06882168,134.26,134.24,0.65]
[1765166671407,104.8,134.27,134.25,2.16679534]
[1765166671901,112.24785784,134.27,134.26,0.65]
[1765166673683,104.8,134.27,134.26,0.65]
[1765166673884,7.44675464,134.29,134.26,2.81679534]
[1765166674201,7.44675464,134.29,134.22,0.85]
[1765166674202,2.16679534,134.27,134.22,0.85]
[1765166674491,11.06679534,134.26,134.22,0.85]
[1765166674792,2.16679534,134.25,134.22,0.85]
[1765166675568,7.44934445,134.24,134.22,0.85]
[1765166677476,7.44934445,134.24,134.23,0.65]
[1765166677823,7.44934445,134.24,134.22,0.85]
[1765166678176,18.61968777,134.27,134.23,2.16679534]
[1765166678393,7.44842561,134.26,134.23,0.65]
[1765166678592,26.06901253,134.26,134.23,16.958864]
[1765166679404,7.44842561,134.26,134.24,0.65]
[1765166679697,7.44842561,134.26,134.24,2.81679534]
[1765166680186,7.44768004,134.27,134.25,0.65]
[1765166680703,26.06688015,134.27,134.24,0.65]
[1765166680890,26.74688015,134.27,134.24,0.65]
[1765166681087,26.74688015,134.27,134.22,0.85]
[1765166681088,0.68,134.26,134.22,0.85]
[1765166681479,8.92,134.26,134.22,0.85]
[1765166681801,8.24,134.26,134.23,0.65]
[1765166682404,7.44878957,134.25,134.23,0.65]
[1765166684107,7.44878957,134.25,134.23,16.958864]
[1765166684516,7.44878957,134.25,134.24,0.65]
[1765166684702,7.44878957,134.25,134.23,0.65]
[1765166685014,7.44878957,134.25,134.24,0.65]
[1765166685418,7.44878957,134.25,134.22,0.2]
[1765166685619,7.44878957,134.25,134.23,0.65]
[1765166687617,14.73339346,134.24,134.22,0.2]
[1765166687918,7.44989942,134.23,134.22,0.2]
[1765166698924,7.44989942,134.23,134.22,0.88]
[1765166700306,7.44989942,134.23,134.22,0.2]
[1765166704216,7.44989942,134.23,134.22,0.88]
[1765166704442,7.44989942,134.23,134.22,0.2]
[1765166705211,8.16989942,134.23,134.22,0.2]
[1765166705411,7.44989942,134.23,134.22,0.2]
[1765166705835,8.16989942,134.23,134.22,0.2]
[1765166706022,11.56280336,134.23,134.22,0.2]
[1765166706224,8.16989942,134.23,134.22,0.2]
[1765166706650,11.56280336,134.23,134.22,0.2]
[1765166706866,4.11290394,134.22,134.2,0.2]
[1765166707153,19.08391355,134.21,134.2,0.2]
[1765166707320,19.80391355,134.21,134.2,0.2]
[1765166707518,19.80391355,134.21,134.19,0.2]
[1765166707519,28.61385847,134.21,134.19,0.2]
[1765166707715,4.11290394,134.2,134.19,0.2]
[1765166708427,19.08391355,134.21,134.19,0.2]
[1765166708632,19.80391355,134.21,134.19,0.2]
[1765166709635,16.41100961,134.21,134.19,0.2]
[1765166709939,8.96,134.2,134.19,0.2]
[1765166710356,8.24,134.2,134.19,0.2]
[1765166711148,16.41156482,134.2,134.19,0.2]
[1765166711326,15.69156482,134.2,134.19,0.2]
[1765166711528,7.45156482,134.2,134.19,0.88]
[1765166711924,7.45041976,134.23,134.19,20.58176794]
[1765166712239,7.45041976,134.23,134.2,0.68]
[1765166713016,26.07516832,134.23,134.2,0.68]
[1765166713617,7.45041976,134.23,134.21,19.70176794]
[1765166714050,7.45041976,134.23,134.22,4.07290394]
[1765166715545,26.07126257,134.25,134.22,4.07290394]
[1765166716449,26.07126257,134.25,134.22,0.68]
[1765166717145,0.72,134.31,134.24,3.39290394]
[1765166717322,0.72,134.31,134.23,16.308864]
[1765166717323,18.61611051,134.3,134.26,3.39290394]
[1765166717741,26.78212689,134.3,134.27,0.68]
[1765166717922,26.78212689,134.3,134.26,3.39290394]
[1765166718124,26.78212689,134.3,134.27,0.68]
[1765166718348,26.78212689,134.3,134.26,0.68]
[1765166718846,26.06212689,134.3,134.26,0.68]
[1765166719224,15.68554718,134.31,134.27,3.39290394]
[1765166719624,15.68554718,134.31,134.28,0.68]
[1765166719925,16.40554718,134.31,134.28,0.68]
[1765166720128,4.11290394,134.3,134.25,16.988864]
[1765166720336,4.11290394,134.3,134.26,0.68]
[1765166721344,7.44657085,134.29,134.26,0.68]
[1765166721749,8.16657085,134.29,134.26,0.68]
[1765166721935,7.44657085,134.29,134.26,0.68]
[1765166722140,15.68657085,134.29,134.26,0.68]
[1765166723257,15.68657085,134.29,134.26,4.07290394]
[1765166723454,104.8,134.3,134.27,3.39290394]
[1765166723755,15.68558428,134.31,134.29,3.39290394]
[1765166723928,8.24,134.31,134.29,3.39290394]
[1765166724128,7.44502697,134.32,134.3,0.67]
[1765166724530,15.68473808,134.33,134.3,4.06290394]
[1765166724838,15.68447049,134.33,134.31,3.39290394]
[1765166725042,15.68447049,134.33,134.31,4.06290394]
[1765166725377,15.68447049,134.33,134.29,19.70176794]
[1765166725655,15.68447049,134.33,134.31,0.67]
[1765166727247,0.72,134.32,134.27,4.06290394]
[1765166727451,7.44546199,134.31,134.27,0.67]
[1765166727629,15.68546199,134.31,134.27,0.67]
[1765166727834,16.40546199,134.31,134.27,0.67]
[1765166729943,16.40546199,134.31,134.28,16.308864]
[1765166731453,35.01911696,134.31,134.28,16.308864]
[1765166731959,35.01911696,134.31,134.28,16.978864]
[1765166732359,104.8,134.3,134.28,16.978864]
[1765166732557,7.44657085,134.29,134.26,4.06290394]
[1765166732954,7.44657085,134.29,134.27,0.67]
[1765166736738,7.44657085,134.29,134.25,16.308864]
[1765166736739,8.16657085,134.29,134.25,4.06290394]
[1765166737074,8.16657085,134.29,134.26,0.67]
[1765166738966,16.40657085,134.29,134.26,0.67]
[1765166739139,34.30299798,134.29,134.26,0.67]
[1765166739643,35.02299798,134.29,134.26,0.67]
[1765166742264,104.8,134.28,134.24,3.39290394]
[1765166742472,104.8,134.28,134.24,0.67]
[1765166742771,105.52,134.28,134.25,0.67]
[1765166743674,7.44768004,134.27,134.25,0.67]
[1765166746273,7.44768004,134.27,134.25,4.06290394]
[1765166746774,7.44768004,134.27,134.26,0.67]
[1765166746974,112.24727969,134.28,134.26,0.67]
[1765166747173,7.44601638,134.3,134.26,4.06290394]
[1765166747349,7.44601638,134.3,134.27,19.70176794]
[1765166747555,7.44601638,134.3,134.27,20.37176794]
[1765166747775,7.44601638,134.3,134.28,0.67]
[1765166753080,112.24601638,134.3,134.28,0.67]
[1765166755588,34.27942426,134.31,134.28,0.67]
[1765166756102,34.27942426,134.31,134.28,20.37176794]
[1765166756263,34.27942426,134.31,134.27,16.308864]
[1765166756264,15.66546199,134.31,134.29,3.39290394]
[1765166756458,15.66546199,134.31,134.29,0.71]
[1765166756698,15.66546199,134.31,134.28,17.018864]
[1765166757195,15.66546199,134.31,134.29,0.71]
[1765166758881,15.66546199,134.31,134.27,19.70176794]
[1765166759087,15.66546199,134.31,134.29,0.67]
[1765166761590,15.66546199,134.31,134.28,3.39290394]
[1765166761773,15.66546199,134.31,134.27,19.70176794]
[1765166762092,121.15546199,134.31,134.28,16.978864]
[1765166762394,0.69,134.3,134.27,16.308864]
[1765166762692,10.38975125,134.29,134.27,16.308864]
[1765166763187,11.07975125,134.29,134.25,0.67]
[1765166763702,10.38975125,134.29,134.23,26.69861525]
[1765166763912,7.44768004,134.27,134.24,0.67]
[1765166764762,15.66768004,134.27,134.24,0.67]
[1765166766667,15.66768004,134.27,134.24,2.83975125]
[1765166766999,15.66768004,134.27,134.25,0.67]
[1765166768572,16.35768004,134.27,134.23,16.978864]
[1765166768776,0.69,134.26,134.23,16.308864]
[1765166769301,0.69,134.26,134.21,10.38975125]
[1765166769302,10.38975125,134.25,134.21,0.67]
[1765166769805,11.07975125,134.25,134.21,0.67]
[1765166769990,8.91,134.25,134.21,0.67]
[1765166770424,7.44934445,134.24,134.21,0.67]
[1765166773000,26.07270559,134.24,134.21,0.67]
[1765166773201,2.16975125,134.22,134.19,0.2]
[1765166773504,2.16975125,134.2,134.19,0.2]
[1765166773880,2.85975125,134.2,134.19,0.2]
[1765166775500,10.31131607,134.2,134.19,0.2]
[1765166779383,18.53131607,134.2,134.19,0.2]
[1765166783375,29.01709553,134.22,134.19,0.91]
[1765166783591,2.85975125,134.21,134.19,0.2]
[1765166783789,8.22,134.2,134.19,0.2]
[1765166784301,18.62734428,134.22,134.19,0.91]
[1765166784801,18.62734428,134.22,134.2,0.71]
[1765166785301,26.07779875,134.22,134.2,0.71]
[1765166787503,18.62734428,134.22,134.2,0.71]
[1765166787699,19.31734428,134.22,134.19,0.2]
[1765166787879,21.48709553,134.22,134.19,0.2]
[1765166788278,0.69,134.21,134.19,0.2]
[1765166788479,2.85975125,134.21,134.19,0.2]
[1765166788690,2.16975125,134.21,134.19,0.2]
[1765166788894,131.64734428,134.22,134.19,0.91]
[1765166789288,132.33734428,134.22,134.19,0.91]
[1765166789599,139.78779875,134.22,134.19,0.91]
[1765166789906,0.69,134.21,134.19,0.2]
[1765166790504,2.85975125,134.21,134.19,0.2]
[1765166790802,139.09779875,134.22,134.19,1e-08]
[1765166790803,11.07975125,134.2,134.19,1e-08]
[1765166791580,18.53131607,134.2,134.19,1e-08]
[1765166793902,17.84131607,134.2,134.19,1e-08]
[1765166794284,15.67156482,134.2,134.19,0.71000001]
[1765166794487,15.67156482,134.2,134.19,1e-08]
[1765166795385,17.84131607,134.2,134.19,1e-08]
[1765166796814,15.67156482,134.2,134.19,1e-08]
[1765166798108,18.53131607,134.2,134.19,1e-08]
[1765166798609,18.53131607,134.2,134.18,0.2]
[1765166798610,27.34126099,134.2,134.18,1e-08]
[1765166798783,2.85975125,134.19,134.18,1e-08]
[1765166799313,2.16975125,134.19,134.18,1e-08]
[1765166799504,2.85975125,134.19,134.18,1e-08]
[1765166800198,10.31187137,134.19,134.18,1e-08]
[1765166800587,9.62187137,134.19,134.18,1e-08]
[1765166800793,10.31187137,134.19,134.18,1e-08]
[1765166805711,19.12181629,134.19,134.18,1e-08]
[1765166806992,27.80082129,134.19,134.18,1e-08]
[1765166808098,19.12181629,134.19,134.18,1e-08]
[1765166808304,9.62187137,134.19,134.18,1e-08]
[1765166808593,17.84187137,134.19,134.18,1e-08]
[1765166809613,15.67212012,134.19,134.18,0.71000001]
[1765166810423,17.84187137,134.19,134.18,1e-08]
[1765166812724,18.56187137,134.19,134.18,1e-08]
[1765166812909,17.84187137,134.19,134.18,1e-08]
[1765166816126,27.37181629,134.19,134.18,1e-08]
[1765166820212,36.05082129,134.19,134.18,1e-08]
[1765166821526,27.37181629,134.19,134.18,1e-08]
[1765166822235,26.65181629,134.19,134.18,1e-08]
[1765166822618,27.35181629,134.19,134.18,1e-08]
[1765166824740,28.57900233,134.19,134.18,1e-08]
[1765166825031,27.87900233,134.19,134.18,1e-08]
[1765166825813,7.45212012,134.19,134.18,0.71000001]
[1765166826010,10.84905741,134.19,134.18,1e-08]
[1765166826437,19.65900233,134.19,134.18,1e-08]
[1765166826938,20.35900233,134.19,134.18,1e-08]
[1765166827523,19.65900233,134.19,134.18,1e-08]
[1765166828339,10.84905741,134.19,134.18,0.71000001]
[1765166828942,10.84905741,134.19,134.18,1e-08]
[1765166829106,10.84905741,134.19,134.18,0.71000001]
[1765166831439,7.45212012,134.19,134.18,0.71000001]
[1765166836549,26.07980037,134.21,134.18,0.71000001]
[1765166837648,26.07980037,134.21,134.18,4.1069373]
[1765166837649,7.45100961,134.21,134.18,4.1069373]
[1765166838145,7.45100961,134.21,134.19,0.71]
[1765166838449,26.07659066,134.22,134.19,0.71]
[1765166844047,7.45045447,134.22,134.19,0.71]
[1765166844348,7.45045447,134.22,134.2,16.308864]
[1765166844749,7.45045447,134.22,134.21,0.72]
[1765166845429,8.22,134.23,134.21,0.72]
[1765166845430,7.45008138,134.23,134.21,0.72]
[1765166845833,7.45008138,134.23,134.21,4.11693729]
[1765166846238,7.45008138,134.23,134.22,0.72]
[1765166846440,15.66947259,134.24,134.22,0.72]
[1765166846648,7.44947259,134.24,134.22,0.72]
[1765166847539,7.44878957,134.25,134.22,0.72]
[1765166849748,7.44878957,134.25,134.22,4.11693729]
[1765166850255,7.44878957,134.25,134.23,0.72]
[1765166852457,7.44878957,134.25,134.23,4.11693729]
[1765166852652,7.44768004,134.27,134.23,20.42580129]
[1765166853012,7.44768004,134.27,134.24,4.11693729]
[1765166853149,7.44768004,134.27,134.25,0.72]
[1765166853470,7.44768004,134.27,134.25,4.11693729]
[1765166853842,7.44768004,134.27,134.26,0.72]
[1765166854171,7.4472163,134.28,134.26,0.72]
[1765166854374,7.44657085,134.29,134.26,0.72]
[1765166856963,7.44657085,134.29,134.27,3.39693729]
[1765166857403,7.44657085,134.29,134.28,0.72]
[1765166858682,18.6154285,134.3,134.28,0.72]
[1765166859298,7.44546199,134.31,134.28,0.72]
[1765166859972,7.44546199,134.31,134.28,4.11693729]
[1765166860175,7.44546199,134.31,134.3,3.39693729]
[1765166860519,7.44546199,134.31,134.29,4.11693729]
[1765166860872,18.61288873,134.32,134.3,0.72]
[1765166860873,26.05779641,134.32,134.3,0.72]
[1765166863193,26.05779641,134.32,134.3,17.028864]
[1765166863382,7.44490768,134.32,134.31,0.72]
[1765166865385,7.64440523,134.33,134.31,0.72]
[1765166871285,7.64440523,134.33,134.31,17.028864]
[1765166871585,7.64440523,134.33,134.32,0.69]
[1765166871766,0.2,134.33,134.32,0.69]
[1765166872587,0.2,134.33,134.32,8.13490768]
[1765166872793,0.2,134.33,134.32,11.53184497]
[1765166873172,0.2,134.33,134.32,27.84070897]
[1765166873367,0.2,134.33,134.32,16.998864]
[1765166878596,7.64435345,134.33,134.27,3.39693729]
[1765166878783,7.64435345,134.33,134.3,0.69]
[1765166879582,0.2,134.33,134.3,20.39580129]
[1765166879788,0.2,134.33,134.3,27.84177504]
[1765166879997,0.2,134.33,134.31,27.85091277]
[1765166880492,0.2,134.33,134.32,4.09693729]
[1765166880791,0.2,134.33,134.32,27.85070897]
[1765166880974,0.2,134.33,134.32,24.45377168]
[1765166881894,0.2,134.33,134.32,17.008864]
[1765166886702,2.36767072,134.33,134.27,22.3555274]
[1765166886902,2.36767072,134.33,134.3,16.308864]
[1765166886903,2.16767072,134.32,134.3,16.308864]
[1765166887387,2.16767072,134.32,134.3,17.008864]
[1765166887585,29.08290781,134.33,134.3,0.7]
[1765166887994,9.81202417,134.33,134.3,0.7]
[1765166888186,0.2,134.33,134.3,24.45471379]
[1765166888581,0.2,134.33,134.31,0.7]
[1765166894711,0.2,134.33,134.31,24.45414467]
[1765166894903,0.2,134.33,134.32,8.2]
[1765166895107,0.2,134.33,134.32,8.9]
[1765166896191,7.64435345,134.33,134.32,16.308864]
[1765166896390,7.64435345,134.33,134.32,17.008864]
[1765166897406,0.2,134.33,134.32,0.7]
[1765166897803,0.2,134.33,134.32,17.008864]
[1765166898591,0.2,134.33,134.32,0.7]
[1765166901510,7.64435345,134.33,134.32,0.7]
[1765166901717,10.53202417,134.33,134.29,0.66]
[1765166901891,2.88767072,134.32,134.26,31.95672406]
[1765166902097,2.88767072,134.32,134.29,16.308864]
[1765166902792,0.72,134.32,134.29,16.968864]
[1765166903013,0.72,134.32,134.3,16.308864]
[1765166903214,28.42290781,134.33,134.3,16.968864]
[1765166903512,26.25523709,134.33,134.3,16.968864]
[1765166903712,26.97523709,134.33,134.3,16.968864]
[1765166905223,26.97523709,134.33,134.3,16.308864]
[1765166905728,26.97523709,134.33,134.3,16.968864]
[1765166906223,26.97523709,134.33,134.3,16.308864]
[1765166906430,7.44546199,134.31,134.3,16.308864]
[1765166906605,7.44496753,134.32,134.3,0.66]
[1765166906794,7.44496753,134.32,134.3,16.968864]
[1765166907213,7.44496753,134.32,134.3,16.308864]
[1765166907817,10.33263825,134.32,134.3,16.308864]
[1765166908607,9.61263825,134.32,134.3,16.308864]
[1765166909019,7.44496753,134.32,134.3,16.308864]
[1765166910117,8.16496753,134.32,134.3,16.308864]
[1765166910415,10.33263825,134.32,134.3,16.308864]
[1765166910615,10.33263825,134.32,134.28,0.66]
[1765166910822,10.33263825,134.32,134.3,16.308864]
[1765166911118,7.44496753,134.32,134.3,16.308864]
[1765166911610,115.13263825,134.32,134.29,0.66]
[1765166911925,115.13263825,134.32,134.3,16.308864]
[1765166912126,112.24496753,134.32,134.3,16.308864]
[1765166912496,104.8,134.32,134.3,16.308864]
[1765166912698,105.52,134.32,134.3,16.308864]
[1765166912918,7.44546199,134.31,134.3,16.308864]
[1765166913921,112.2450962,134.32,134.3,16.308864]
[1765166915825,0.72,134.31,134.27,8.86]
[1765166916010,2.88767072,134.31,134.28,16.308864]
[1765166916828,2.88767072,134.31,134.28,16.968864]
[1765166917625,133.02503612,134.32,134.28,16.968864]
[1765166917832,131.5773654,134.32,134.28,16.968864]
[1765166918235,112.2450962,134.32,134.29,0.66]
[1765166918441,120.4450962,134.32,134.29,0.66]
[1765166919316,121.1650962,134.32,134.29,0.66]
[1765166919932,120.4450962,134.32,134.29,0.66]
[1765166920329,139.0573654,134.32,134.28,16.308864]
[1765166920625,2.88767072,134.31,134.28,16.308864]
[1765166922136,7.44601638,134.3,134.28,16.308864]
[1765166924317,7.44546199,134.31,134.28,16.968864]
[1765166926110,7.44546199,134.31,134.29,0.66]
[1765166928069,120.44512024,134.32,134.29,0.66]
[1765166928249,112.24512024,134.32,134.29,0.66]
[1765166934340,112.93512024,134.32,134.29,0.66]
[1765166937544,112.24512024,134.32,134.29,0.66]
[1765166940850,15.84436939,134.33,134.29,10.27421457]
[1765166941024,0.2,134.33,134.32,18.47653472]
[1765166941342,0.2,134.33,134.32,16.308864]
[1765166941528,0.2,134.33,134.32,16.978864]
[1765166943371,8.33435345,134.33,134.32,16.308864]
[1765166943571,10.50202417,134.33,134.28,0.67]
[1765166943731,0.69,134.32,134.28,0.67]
[1765166944059,0.69,134.32,134.3,16.308864]
[1765166945560,7.44546199,134.31,134.3,16.308864]
[1765166946054,28.22678768,134.31,134.27,8.2]
[1765166946353,0.69,134.3,134.27,8.87]
[1765166946537,28.22678768,134.31,134.27,8.87]
[1765166946741,30.13886379,134.31,134.27,8.87]
[1765166946941,29.44886379,134.31,134.27,8.87]
[1765166947142,0.69,134.3,134.28,16.308864]